Body Name,Service Code,Expenditure Category,Payment Date,Transaction Number,Supplier,Net Amount
Barrow Borough Council,Local Restrictions Support Grant (Closed)�Addendum�,Wholesale And Retail Trade; Repair Of Motor Vehicles And Motorcycles,06-Apr-21,LRSG_2913,Waterstones Booksellers Ltd,"2,000.00"
Barrow Borough Council,Local Restrictions Support Grant (Closed)�Addendum�,Wholesale And Retail Trade; Repair Of Motor Vehicles And Motorcycles,06-Apr-21,LRSG_2914,New Look Retailers,"3,000.00"
Barrow Borough Council,Local Restrictions Support Grant (Closed)�Addendum�,"Arts, Entertainment And Recreation",06-Apr-21,LRSG_2915,Nuffield Health,"3,000.00"
Barrow Borough Council,Local Restrictions Support Grant (Closed)�Addendum�,"Arts, Entertainment And Recreation",06-Apr-21,LRSG_2916,The English Heritage Trust,"1,334.00"
Barrow Borough Council,Local Restrictions Support Grant (Closed)�Addendum�,Wholesale And Retail Trade; Repair Of Motor Vehicles And Motorcycles,06-Apr-21,LRSG_2917,Dalton With Newton Town Council,"1,334.00"
Barrow Borough Council,Local Restrictions Support Grant (Open)�,"Arts, Entertainment And Recreation",06-Apr-21,LRSG_2918,Nuffield Health,"1,425.00"
Barrow Borough Council,Local Restrictions Support Grant (Closed)�Addendum�,Accommodation And Food Service Activities,07-Apr-21,LRSG_2919,Whitbread Group PLC,"3,000.00"
Barrow Borough Council,Local Restrictions Support Grant (Closed) Addendum: Tier 4,Wholesale And Retail Trade; Repair Of Motor Vehicles And Motorcycles,08-Apr-21,LRSG_2920,Alan Kell Plumbing & Heating Engineers Ltd,238.21
Barrow Borough Council,Local Restrictions Support Grant (Closed) Addendum: 5 January onwards,Wholesale And Retail Trade; Repair Of Motor Vehicles And Motorcycles,08-Apr-21,LRSG_2921,Alan Kell Plumbing & Heating Engineers Ltd,"2,001.00"
Barrow Borough Council,Closed Business Lockdown Payment,Wholesale And Retail Trade; Repair Of Motor Vehicles And Motorcycles,07-Apr-21,LRSG_2922,Intrim Ladies Hairdressers,"4,000.00"
Barrow Borough Council,Local Restrictions Support Grant (Closed) Addendum: 5 January onwards,Accommodation And Food Service Activities,14-Apr-21,LRSG_2923,SJA Accommodation Ltd,"3,000.00"
Barrow Borough Council,Local Restrictions Support Grant (Open)�,Accommodation And Food Service Activities,14-Apr-21,LRSG_2924,SJA Accommodation Ltd,"1,425.00"
Barrow Borough Council,Local Restrictions Support Grant (Open)�,Accommodation And Food Service Activities,14-Apr-21,LRSG_2925,SJA Accommodation Ltd,"1,425.00"
Barrow Borough Council,Closed Business Lockdown Payment,Wholesale And Retail Trade; Repair Of Motor Vehicles And Motorcycles,14-Apr-21,LRSG_2926,Alan Kell Plumbing & Heating Engineers Ltd,"4,000.00"
Barrow Borough Council,Local Restrictions Support Grant (Closed) Addendum: 5 January onwards,Wholesale And Retail Trade; Repair Of Motor Vehicles And Motorcycles,14-Apr-21,LRSG_2927,Jacobs & Turner Ltd,"3,143.00"
Barrow Borough Council,Local Restrictions Support Grant (Closed) Addendum: 5 January onwards,Wholesale And Retail Trade; Repair Of Motor Vehicles And Motorcycles,14-Apr-21,LRSG_2928,EWB Cotton Ltd,"2,096.00"
Barrow Borough Council,Local Restrictions Support Grant (Closed) Addendum: 5 January onwards,"Arts, Entertainment And Recreation",14-Apr-21,LRSG_2929,Furness Catholic Amateur Boxing Club,"2,096.00"
Barrow Borough Council,Local Restrictions Support Grant (Closed) Addendum: 5 January onwards,Wholesale And Retail Trade; Repair Of Motor Vehicles And Motorcycles,14-Apr-21,LRSG_2930,CCHG Limited,"2,096.00"
Barrow Borough Council,Local Restrictions Support Grant (Closed) Addendum: 5 January onwards,Wholesale And Retail Trade; Repair Of Motor Vehicles And Motorcycles,14-Apr-21,LRSG_2931,JD Motors Barrow Ltd,"2,096.00"
Barrow Borough Council,Local Restrictions Support Grant (Closed) Addendum: 5 January onwards,Wholesale And Retail Trade; Repair Of Motor Vehicles And Motorcycles,14-Apr-21,LRSG_2932,Matalan Retail Ltd,"4,714.00"
Barrow Borough Council,Local Restrictions Support Grant (Closed) Addendum: 5 January onwards,Wholesale And Retail Trade; Repair Of Motor Vehicles And Motorcycles,14-Apr-21,LRSG_2933,DEBRA,"2,096.00"
Barrow Borough Council,Local Restrictions Support Grant (Closed) Addendum: 5 January onwards,Wholesale And Retail Trade; Repair Of Motor Vehicles And Motorcycles,14-Apr-21,LRSG_2934,Esquire Retail Ltd,"4,714.00"
Barrow Borough Council,Local Restrictions Support Grant (Closed) Addendum: 5 January onwards,Accommodation And Food Service Activities,14-Apr-21,LRSG_2935,Beluto Properties,"3,143.00"
Barrow Borough Council,Local Restrictions Support Grant (Closed) Addendum: 5 January onwards,Accommodation And Food Service Activities,14-Apr-21,LRSG_2936,Red and Racz Ltd,"3,143.00"
Barrow Borough Council,Local Restrictions Support Grant (Closed) Addendum: 5 January onwards,Wholesale And Retail Trade; Repair Of Motor Vehicles And Motorcycles,14-Apr-21,LRSG_2937,Intrim Ladies Hairdressers,"2,096.00"
Barrow Borough Council,Restart Grant,Wholesale And Retail Trade; Repair Of Motor Vehicles And Motorcycles,14-Apr-21,LRSG_2938,Marsha Lee ,"2,667.00"
Barrow Borough Council,Restart Grant,Wholesale And Retail Trade; Repair Of Motor Vehicles And Motorcycles,14-Apr-21,LRSG_2939,JayJays Electricals,"2,667.00"
Barrow Borough Council,Restart Grant,Wholesale And Retail Trade; Repair Of Motor Vehicles And Motorcycles,14-Apr-21,LRSG_2940,Atomic Comica,"2,667.00"
Barrow Borough Council,Restart Grant,Wholesale And Retail Trade; Repair Of Motor Vehicles And Motorcycles,14-Apr-21,LRSG_2941,The Bridal House ,"2,667.00"
Barrow Borough Council,Restart Grant,Wholesale And Retail Trade; Repair Of Motor Vehicles And Motorcycles,14-Apr-21,LRSG_2942,James Milner (Barrow) Ltd,"4,000.00"
Barrow Borough Council,Restart Grant,Wholesale And Retail Trade; Repair Of Motor Vehicles And Motorcycles,14-Apr-21,LRSG_2943,vision tv,"2,667.00"
Barrow Borough Council,Restart Grant,Wholesale And Retail Trade; Repair Of Motor Vehicles And Motorcycles,14-Apr-21,LRSG_2944,Business Grant Recipient,"2,667.00"
Barrow Borough Council,Restart Grant,Wholesale And Retail Trade; Repair Of Motor Vehicles And Motorcycles,14-Apr-21,LRSG_2945,GR & MM Blackledge PLC,"4,000.00"
Barrow Borough Council,Restart Grant,Wholesale And Retail Trade; Repair Of Motor Vehicles And Motorcycles,14-Apr-21,LRSG_2946,Business Grant Recipient,"2,667.00"
Barrow Borough Council,Restart Grant,Wholesale And Retail Trade; Repair Of Motor Vehicles And Motorcycles,14-Apr-21,LRSG_2947,Efflorescence Ltd,"2,667.00"
Barrow Borough Council,Restart Grant,Wholesale And Retail Trade; Repair Of Motor Vehicles And Motorcycles,14-Apr-21,LRSG_2948,Furness Laptop Repair Limited,"2,667.00"
Barrow Borough Council,Restart Grant,Wholesale And Retail Trade; Repair Of Motor Vehicles And Motorcycles,14-Apr-21,LRSG_2949,Business Grant Recipient,"4,000.00"
Barrow Borough Council,Restart Grant,Wholesale And Retail Trade; Repair Of Motor Vehicles And Motorcycles,14-Apr-21,LRSG_2950,D Stoker Group Ltd,"6,000.00"
Barrow Borough Council,Restart Grant,Wholesale And Retail Trade; Repair Of Motor Vehicles And Motorcycles,14-Apr-21,LRSG_2951,Business Grant Recipient,"2,667.00"
Barrow Borough Council,Restart Grant,Wholesale And Retail Trade; Repair Of Motor Vehicles And Motorcycles,14-Apr-21,LRSG_2952,Sweetie Pies,"2,667.00"
Barrow Borough Council,Restart Grant,Wholesale And Retail Trade; Repair Of Motor Vehicles And Motorcycles,14-Apr-21,LRSG_2953,Business Grant Recipient,"2,667.00"
Barrow Borough Council,Restart Grant,Wholesale And Retail Trade; Repair Of Motor Vehicles And Motorcycles,14-Apr-21,LRSG_2954,Harts the Jewellers,"2,667.00"
Barrow Borough Council,Restart Grant,Wholesale And Retail Trade; Repair Of Motor Vehicles And Motorcycles,14-Apr-21,LRSG_2955,Speed of Sound LTD,"2,667.00"
Barrow Borough Council,Restart Grant,Wholesale And Retail Trade; Repair Of Motor Vehicles And Motorcycles,14-Apr-21,LRSG_2956,Business Grant Recipient,"2,667.00"
Barrow Borough Council,Restart Grant,Other Service Activities,14-Apr-21,LRSG_2957,Hair by Amy Moncrief,"8,000.00"
Barrow Borough Council,Restart Grant,"Arts, Entertainment And Recreation",14-Apr-21,LRSG_2958,Little Subs Barrow Ltd,"12,000.00"
Barrow Borough Council,Restart Grant,Accommodation And Food Service Activities,14-Apr-21,LRSG_2959,"Greengate Workingmen'S,","8,000.00"
Barrow Borough Council,Restart Grant,Accommodation And Food Service Activities,14-Apr-21,LRSG_2960,Harrbains Ltd,"12,000.00"
Barrow Borough Council,Restart Grant,Wholesale And Retail Trade; Repair Of Motor Vehicles And Motorcycles,14-Apr-21,LRSG_2961,"RWE Tanning Ltd, T/A The Sun Shack","8,000.00"
Barrow Borough Council,Restart Grant,Wholesale And Retail Trade; Repair Of Motor Vehicles And Motorcycles,14-Apr-21,LRSG_2962,Business Grant Recipient,"8,000.00"
Barrow Borough Council,Restart Grant,Wholesale And Retail Trade; Repair Of Motor Vehicles And Motorcycles,14-Apr-21,LRSG_2963,Salon One Highfield Limited,"8,000.00"
Barrow Borough Council,Restart Grant,Wholesale And Retail Trade; Repair Of Motor Vehicles And Motorcycles,14-Apr-21,LRSG_2964,Business Grant Recipient,"8,000.00"
Barrow Borough Council,Restart Grant,Accommodation And Food Service Activities,14-Apr-21,LRSG_2965,Lara Gibbons Ltd,"8,000.00"
Barrow Borough Council,Restart Grant,Accommodation And Food Service Activities,14-Apr-21,LRSG_2966,Lucidity Group/Townhouse,"12,000.00"
Barrow Borough Council,Restart Grant,Accommodation And Food Service Activities,14-Apr-21,LRSG_2967,Lucidty Group Ltd,"18,000.00"
Barrow Borough Council,Restart Grant,Wholesale And Retail Trade; Repair Of Motor Vehicles And Motorcycles,14-Apr-21,LRSG_2968,Polished Nail and Beauty Training & Cara Tinning Skin Clinic ,"8,000.00"
Barrow Borough Council,Restart Grant,Wholesale And Retail Trade; Repair Of Motor Vehicles And Motorcycles,14-Apr-21,LRSG_2969,Business Grant Recipient,"8,000.00"
Barrow Borough Council,Restart Grant,Accommodation And Food Service Activities,14-Apr-21,LRSG_2970,Business Grant Recipient,"8,000.00"
Barrow Borough Council,Restart Grant,Accommodation And Food Service Activities,14-Apr-21,LRSG_2971,Business Grant Recipient,"8,000.00"
Barrow Borough Council,Restart Grant,Accommodation And Food Service Activities,14-Apr-21,LRSG_2972,Business Grant Recipient,"8,000.00"
Barrow Borough Council,Restart Grant,Accommodation And Food Service Activities,14-Apr-21,LRSG_2973,Business Grant Recipient,"8,000.00"
Barrow Borough Council,Restart Grant,Wholesale And Retail Trade; Repair Of Motor Vehicles And Motorcycles,14-Apr-21,LRSG_2974,Gold Planner Ltd,"12,000.00"
Barrow Borough Council,Restart Grant,Accommodation And Food Service Activities,14-Apr-21,LRSG_2975,Royal Naval Association Club,"8,000.00"
Barrow Borough Council,Restart Grant,Accommodation And Food Service Activities,14-Apr-21,LRSG_2976,CHAD in Askam Limited,"8,000.00"
Barrow Borough Council,Restart Grant,Wholesale And Retail Trade; Repair Of Motor Vehicles And Motorcycles,14-Apr-21,LRSG_2977,Maiquez Limited,"12,000.00"
Barrow Borough Council,Restart Grant,Wholesale And Retail Trade; Repair Of Motor Vehicles And Motorcycles,14-Apr-21,LRSG_2978,maiquez Limited,"12,000.00"
Barrow Borough Council,Restart Grant,"Arts, Entertainment And Recreation",14-Apr-21,LRSG_2979,Business Grant Recipient,"8,000.00"
Barrow Borough Council,Restart Grant,Other Service Activities,14-Apr-21,LRSG_2980,Business Grant Recipient,"8,000.00"
Barrow Borough Council,Restart Grant,Accommodation And Food Service Activities,14-Apr-21,LRSG_2981,David Clark Properties ,"12,000.00"
Barrow Borough Council,Restart Grant,Wholesale And Retail Trade; Repair Of Motor Vehicles And Motorcycles,14-Apr-21,LRSG_2982,Business Grant Recipient,"8,000.00"
Barrow Borough Council,Restart Grant,"Arts, Entertainment And Recreation",14-Apr-21,LRSG_2983,Furness Catholic Amateur Boxing Club,"8,000.00"
Barrow Borough Council,Restart Grant,Wholesale And Retail Trade; Repair Of Motor Vehicles And Motorcycles,14-Apr-21,LRSG_2984,Business Grant Recipient,"8,000.00"
Barrow Borough Council,Restart Grant,Accommodation And Food Service Activities,14-Apr-21,LRSG_2985,Dalton Cricket Club,"8,000.00"
Barrow Borough Council,Restart Grant,Other Service Activities,14-Apr-21,LRSG_2986,Business Grant Recipient,"8,000.00"
Barrow Borough Council,Restart Grant,"Arts, Entertainment And Recreation",14-Apr-21,LRSG_2987,Hoops Basketball Centre,"12,000.00"
Barrow Borough Council,Restart Grant,Wholesale And Retail Trade; Repair Of Motor Vehicles And Motorcycles,14-Apr-21,LRSG_2988,Business Grant Recipient,"8,000.00"
Barrow Borough Council,Restart Grant,"Arts, Entertainment And Recreation",14-Apr-21,LRSG_2989,Business Grant Recipient,"8,000.00"
Barrow Borough Council,Restart Grant,"Arts, Entertainment And Recreation",14-Apr-21,LRSG_2990,Furness Pistol/Rifle Club,"8,000.00"
Barrow Borough Council,Restart Grant,Other Service Activities,14-Apr-21,LRSG_2991,Business Grant Recipient,"8,000.00"
Barrow Borough Council,Restart Grant,"Arts, Entertainment And Recreation",14-Apr-21,LRSG_2992,Reaching Wellness Ltd,"8,000.00"
Barrow Borough Council,Restart Grant,Accommodation And Food Service Activities,14-Apr-21,LRSG_2993,Business Grant Recipient,"8,000.00"
Barrow Borough Council,Restart Grant,"Arts, Entertainment And Recreation",14-Apr-21,LRSG_2994,South Lakes Rock School,"8,000.00"
Barrow Borough Council,Restart Grant,Accommodation And Food Service Activities,14-Apr-21,LRSG_2995,The Rams Head Pub,"8,000.00"
Barrow Borough Council,Restart Grant,Wholesale And Retail Trade; Repair Of Motor Vehicles And Motorcycles,14-Apr-21,LRSG_2996,Business Grant Recipient,"8,000.00"
Barrow Borough Council,Restart Grant,Other Service Activities,14-Apr-21,LRSG_2997,Business Grant Recipient,"8,000.00"
Barrow Borough Council,Restart Grant,Wholesale And Retail Trade; Repair Of Motor Vehicles And Motorcycles,15-Apr-21,LRSG_2998,North West Consumables,"2,667.00"
Barrow Borough Council,Restart Grant,Wholesale And Retail Trade; Repair Of Motor Vehicles And Motorcycles,15-Apr-21,LRSG_2999,Business Grant Recipient,"2,667.00"
Barrow Borough Council,Restart Grant,Wholesale And Retail Trade; Repair Of Motor Vehicles And Motorcycles,15-Apr-21,LRSG_3000,HH77 LTD,"4,000.00"
Barrow Borough Council,Restart Grant,Wholesale And Retail Trade; Repair Of Motor Vehicles And Motorcycles,15-Apr-21,LRSG_3001,Business Grant Recipient,"2,667.00"
Barrow Borough Council,Restart Grant,Wholesale And Retail Trade; Repair Of Motor Vehicles And Motorcycles,15-Apr-21,LRSG_3002,Business Grant Recipient,"2,667.00"
Barrow Borough Council,Restart Grant,Wholesale And Retail Trade; Repair Of Motor Vehicles And Motorcycles,15-Apr-21,LRSG_3003,Business Grant Recipient,"2,667.00"
Barrow Borough Council,Restart Grant,Wholesale And Retail Trade; Repair Of Motor Vehicles And Motorcycles,15-Apr-21,LRSG_3004, Dandy's Ltd,"4,000.00"
Barrow Borough Council,Restart Grant,Wholesale And Retail Trade; Repair Of Motor Vehicles And Motorcycles,15-Apr-21,LRSG_3005,Abbey Blinds ,"2,667.00"
Barrow Borough Council,Restart Grant,Wholesale And Retail Trade; Repair Of Motor Vehicles And Motorcycles,15-Apr-21,LRSG_3006,Business Grant Recipient,"2,667.00"
Barrow Borough Council,Restart Grant,Wholesale And Retail Trade; Repair Of Motor Vehicles And Motorcycles,15-Apr-21,LRSG_3007,Business Grant Recipient,"2,667.00"
Barrow Borough Council,Restart Grant,Wholesale And Retail Trade; Repair Of Motor Vehicles And Motorcycles,15-Apr-21,LRSG_3008,Angling and Hiking Centre,"2,667.00"
Barrow Borough Council,Restart Grant,Wholesale And Retail Trade; Repair Of Motor Vehicles And Motorcycles,15-Apr-21,LRSG_3009,Business Grant Recipient,"2,667.00"
Barrow Borough Council,Restart Grant,Wholesale And Retail Trade; Repair Of Motor Vehicles And Motorcycles,15-Apr-21,LRSG_3010,Guy Perry Ltd,"4,000.00"
Barrow Borough Council,Restart Grant,Wholesale And Retail Trade; Repair Of Motor Vehicles And Motorcycles,15-Apr-21,LRSG_3011,Business Grant Recipient,"2,667.00"
Barrow Borough Council,Restart Grant,Wholesale And Retail Trade; Repair Of Motor Vehicles And Motorcycles,15-Apr-21,LRSG_3012,Business Grant Recipient,"2,667.00"
Barrow Borough Council,Restart Grant,Wholesale And Retail Trade; Repair Of Motor Vehicles And Motorcycles,15-Apr-21,LRSG_3013,Darren Roby collectors,"2,667.00"
Barrow Borough Council,Restart Grant,Wholesale And Retail Trade; Repair Of Motor Vehicles And Motorcycles,15-Apr-21,LRSG_3014,The Eco Shop,"2,667.00"
Barrow Borough Council,Restart Grant,Wholesale And Retail Trade; Repair Of Motor Vehicles And Motorcycles,15-Apr-21,LRSG_3015,Business Grant Recipient,"2,667.00"
Barrow Borough Council,Restart Grant,Wholesale And Retail Trade; Repair Of Motor Vehicles And Motorcycles,15-Apr-21,LRSG_3016,Business Grant Recipient,"2,667.00"
Barrow Borough Council,Restart Grant,Wholesale And Retail Trade; Repair Of Motor Vehicles And Motorcycles,15-Apr-21,LRSG_3017,Business Grant Recipient,"2,667.00"
Barrow Borough Council,Restart Grant,Wholesale And Retail Trade; Repair Of Motor Vehicles And Motorcycles,15-Apr-21,LRSG_3018,Business Grant Recipient,"2,667.00"
Barrow Borough Council,Restart Grant,Wholesale And Retail Trade; Repair Of Motor Vehicles And Motorcycles,15-Apr-21,LRSG_3019,Business Grant Recipient,"2,667.00"
Barrow Borough Council,Restart Grant,Wholesale And Retail Trade; Repair Of Motor Vehicles And Motorcycles,15-Apr-21,LRSG_3020,Lads and Dads Clothing Ltd,"2,667.00"
Barrow Borough Council,Restart Grant,Wholesale And Retail Trade; Repair Of Motor Vehicles And Motorcycles,15-Apr-21,LRSG_3021,Business Grant Recipient,"2,667.00"
Barrow Borough Council,Restart Grant,Wholesale And Retail Trade; Repair Of Motor Vehicles And Motorcycles,15-Apr-21,LRSG_3022,Business Grant Recipient,"2,667.00"
Barrow Borough Council,Restart Grant,Wholesale And Retail Trade; Repair Of Motor Vehicles And Motorcycles,15-Apr-21,LRSG_3023,Business Grant Recipient,"2,667.00"
Barrow Borough Council,Restart Grant,Wholesale And Retail Trade; Repair Of Motor Vehicles And Motorcycles,15-Apr-21,LRSG_3024,Business Grant Recipient,"2,667.00"
Barrow Borough Council,Restart Grant,"Arts, Entertainment And Recreation",15-Apr-21,LRSG_3025,Dalton Communty Association,"8,000.00"
Barrow Borough Council,Restart Grant,Accommodation And Food Service Activities,15-Apr-21,LRSG_3026,Business Grant Recipient,"8,000.00"
Barrow Borough Council,Restart Grant,Wholesale And Retail Trade; Repair Of Motor Vehicles And Motorcycles,15-Apr-21,LRSG_3027,Business Grant Recipient,"8,000.00"
Barrow Borough Council,Restart Grant,Wholesale And Retail Trade; Repair Of Motor Vehicles And Motorcycles,15-Apr-21,LRSG_3028,Business Grant Recipient,"8,000.00"
Barrow Borough Council,Restart Grant,Accommodation And Food Service Activities,15-Apr-21,LRSG_3029,Business Grant Recipient,"8,000.00"
Barrow Borough Council,Restart Grant,"Arts, Entertainment And Recreation",15-Apr-21,LRSG_3030,LQ (Cumbria) Ltd,"12,000.00"
Barrow Borough Council,Restart Grant,"Arts, Entertainment And Recreation",15-Apr-21,LRSG_3031,ESCAPE ROOM (Barrow ltd),"8,000.00"
Barrow Borough Council,Restart Grant,Accommodation And Food Service Activities,15-Apr-21,LRSG_3032,Eden Retreat Ltd,"8,000.00"
Barrow Borough Council,Restart Grant,Accommodation And Food Service Activities,15-Apr-21,LRSG_3033,Beluto Properties,"12,000.00"
Barrow Borough Council,Restart Grant,Accommodation And Food Service Activities,15-Apr-21,LRSG_3034,Beluto Properties,"12,000.00"
Barrow Borough Council,Restart Grant,Accommodation And Food Service Activities,15-Apr-21,LRSG_3035,Beluto Properties,"8,000.00"
Barrow Borough Council,Restart Grant,Accommodation And Food Service Activities,15-Apr-21,LRSG_3036,Beluto Properties ,"12,000.00"
Barrow Borough Council,Restart Grant,Accommodation And Food Service Activities,15-Apr-21,LRSG_3037,Business Grant Recipient,"8,000.00"
Barrow Borough Council,Restart Grant,Accommodation And Food Service Activities,15-Apr-21,LRSG_3038,Barrow Arms ,"12,000.00"
Barrow Borough Council,Restart Grant,Accommodation And Food Service Activities,15-Apr-21,LRSG_3039,Roa Island Boating Club Ltd,"8,000.00"
Barrow Borough Council,Restart Grant,Wholesale And Retail Trade; Repair Of Motor Vehicles And Motorcycles,15-Apr-21,LRSG_3040,Business Grant Recipient,"8,000.00"
Barrow Borough Council,Restart Grant,Wholesale And Retail Trade; Repair Of Motor Vehicles And Motorcycles,15-Apr-21,LRSG_3041,Peace and Loaf Bakehouse,"8,000.00"
Barrow Borough Council,Restart Grant,"Arts, Entertainment And Recreation",15-Apr-21,LRSG_3042,Graves (Cumberland) Ltd,"18,000.00"
Barrow Borough Council,Restart Grant,Wholesale And Retail Trade; Repair Of Motor Vehicles And Motorcycles,15-Apr-21,LRSG_3043,Business Grant Recipient,"8,000.00"
Barrow Borough Council,Restart Grant,Wholesale And Retail Trade; Repair Of Motor Vehicles And Motorcycles,15-Apr-21,LRSG_3044,Business Grant Recipient,"8,000.00"
Barrow Borough Council,Restart Grant,"Arts, Entertainment And Recreation",15-Apr-21,LRSG_3045,Furness Gymnastics Club,"12,000.00"
Barrow Borough Council,Restart Grant,Wholesale And Retail Trade; Repair Of Motor Vehicles And Motorcycles,15-Apr-21,LRSG_3046,Business Grant Recipient,"8,000.00"
Barrow Borough Council,Restart Grant,Wholesale And Retail Trade; Repair Of Motor Vehicles And Motorcycles,15-Apr-21,LRSG_3047,Head Office Furness,"8,000.00"
Barrow Borough Council,Restart Grant,Accommodation And Food Service Activities,15-Apr-21,LRSG_3048,Business Grant Recipient,"8,000.00"
Barrow Borough Council,Restart Grant,Accommodation And Food Service Activities,15-Apr-21,LRSG_3049,Business Grant Recipient,"8,000.00"
Barrow Borough Council,Restart Grant,Wholesale And Retail Trade; Repair Of Motor Vehicles And Motorcycles,15-Apr-21,LRSG_3050,Feel Fabulous Hair and Beauty Ltd,"8,000.00"
Barrow Borough Council,Restart Grant,Wholesale And Retail Trade; Repair Of Motor Vehicles And Motorcycles,15-Apr-21,LRSG_3051,Business Grant Recipient,"8,000.00"
Barrow Borough Council,Restart Grant,Wholesale And Retail Trade; Repair Of Motor Vehicles And Motorcycles,15-Apr-21,LRSG_3052,Investacc Pension Trustees Limited,"8,000.00"
Barrow Borough Council,Restart Grant,"Arts, Entertainment And Recreation",15-Apr-21,LRSG_3053,Elite Dance & Fitness Ltd,"8,000.00"
Barrow Borough Council,Restart Grant,"Arts, Entertainment And Recreation",15-Apr-21,LRSG_3054,Kite School and Premises,"8,000.00"
Barrow Borough Council,Restart Grant,"Arts, Entertainment And Recreation",15-Apr-21,LRSG_3055,Furness Rugby Union Football Club,"8,000.00"
Barrow Borough Council,Restart Grant,Accommodation And Food Service Activities,19-Apr-21,LRSG_3056,Business Grant Recipient,"12,000.00"
Barrow Borough Council,Restart Grant,Accommodation And Food Service Activities,19-Apr-21,LRSG_3057,Abbey Mill Coffee Shop,"8,000.00"
Barrow Borough Council,Restart Grant,Accommodation And Food Service Activities,19-Apr-21,LRSG_3058,Business Grant Recipient,"8,000.00"
Barrow Borough Council,Restart Grant,Wholesale And Retail Trade; Repair Of Motor Vehicles And Motorcycles,19-Apr-21,LRSG_3059,Refine Medispa limited,"8,000.00"
Barrow Borough Council,Restart Grant,"Arts, Entertainment And Recreation",19-Apr-21,LRSG_3060,Lobo BJJ Ltd,"8,000.00"
Barrow Borough Council,Restart Grant,"Arts, Entertainment And Recreation",19-Apr-21,LRSG_3061,Infinity Gymnastics,"8,000.00"
Barrow Borough Council,Restart Grant,Wholesale And Retail Trade; Repair Of Motor Vehicles And Motorcycles,19-Apr-21,LRSG_3062,Kutz Barrow,"8,000.00"
Barrow Borough Council,Restart Grant,Accommodation And Food Service Activities,19-Apr-21,LRSG_3063,Business Grant Recipient,"8,000.00"
Barrow Borough Council,Restart Grant,Accommodation And Food Service Activities,19-Apr-21,LRSG_3064,Business Grant Recipient,"8,000.00"
Barrow Borough Council,Restart Grant,Accommodation And Food Service Activities,19-Apr-21,LRSG_3065,Specpride Limited,"8,000.00"
Barrow Borough Council,Restart Grant,Accommodation And Food Service Activities,19-Apr-21,LRSG_3066,Business Grant Recipient,"12,000.00"
Barrow Borough Council,Restart Grant,Wholesale And Retail Trade; Repair Of Motor Vehicles And Motorcycles,19-Apr-21,LRSG_3067,Bliss pedispa ,"8,000.00"
Barrow Borough Council,Restart Grant,Accommodation And Food Service Activities,19-Apr-21,LRSG_3068,The Lounge Group Limited,"12,000.00"
Barrow Borough Council,Restart Grant,"Arts, Entertainment And Recreation",19-Apr-21,LRSG_3069,Business Grant Recipient,"8,000.00"
Barrow Borough Council,Restart Grant,Other Service Activities,19-Apr-21,LRSG_3070,Business Grant Recipient,"8,000.00"
Barrow Borough Council,Restart Grant,Accommodation And Food Service Activities,19-Apr-21,LRSG_3071,Business Grant Recipient,"8,000.00"
Barrow Borough Council,Restart Grant,Accommodation And Food Service Activities,19-Apr-21,LRSG_3072,Business Grant Recipient,"8,000.00"
Barrow Borough Council,Restart Grant,Accommodation And Food Service Activities,19-Apr-21,LRSG_3073,Business Grant Recipient,"8,000.00"
Barrow Borough Council,Restart Grant,Wholesale And Retail Trade; Repair Of Motor Vehicles And Motorcycles,19-Apr-21,LRSG_3074,Business Grant Recipient,"8,000.00"
Barrow Borough Council,Restart Grant,Accommodation And Food Service Activities,19-Apr-21,LRSG_3075,Business Grant Recipient,"8,000.00"
Barrow Borough Council,Restart Grant,Wholesale And Retail Trade; Repair Of Motor Vehicles And Motorcycles,19-Apr-21,LRSG_3076,DEVRO BARBERSHOP LTD,"8,000.00"
Barrow Borough Council,Restart Grant,Accommodation And Food Service Activities,19-Apr-21,LRSG_3077,Business Grant Recipient,"8,000.00"
Barrow Borough Council,Restart Grant,"Arts, Entertainment And Recreation",19-Apr-21,LRSG_3078,Walney Community Trust,"8,000.00"
Barrow Borough Council,Restart Grant,Other Service Activities,19-Apr-21,LRSG_3079,Business Grant Recipient,"8,000.00"
Barrow Borough Council,Restart Grant,Wholesale And Retail Trade; Repair Of Motor Vehicles And Motorcycles,19-Apr-21,LRSG_3080,Cutting Edge Dalton Ltd,"8,000.00"
Barrow Borough Council,Restart Grant,Wholesale And Retail Trade; Repair Of Motor Vehicles And Motorcycles,19-Apr-21,LRSG_3081,Business Grant Recipient,"8,000.00"
Barrow Borough Council,Restart Grant,Other Service Activities,19-Apr-21,LRSG_3082,Business Grant Recipient,"8,000.00"
Barrow Borough Council,Restart Grant,Accommodation And Food Service Activities,19-Apr-21,LRSG_3083,M & A Brun Ltd T/A Barrow Fiesta ,"12,000.00"
Barrow Borough Council,Restart Grant,"Arts, Entertainment And Recreation",19-Apr-21,LRSG_3084,Duddon Sports & Social Club,"8,000.00"
Barrow Borough Council,Restart Grant,Accommodation And Food Service Activities,19-Apr-21,LRSG_3085,Business Grant Recipient,"8,000.00"
Barrow Borough Council,Restart Grant,Accommodation And Food Service Activities,19-Apr-21,LRSG_3086,Business Grant Recipient,"8,000.00"
Barrow Borough Council,Restart Grant,Accommodation And Food Service Activities,19-Apr-21,LRSG_3087,Business Grant Recipient,"8,000.00"
Barrow Borough Council,Restart Grant,Wholesale And Retail Trade; Repair Of Motor Vehicles And Motorcycles,19-Apr-21,LRSG_3088,hair Flair Ltd,"8,000.00"
Barrow Borough Council,Restart Grant,"Arts, Entertainment And Recreation",19-Apr-21,LRSG_3089,THE INDEPENDENT JIU-JITSU ASSOCIATION,"8,000.00"
Barrow Borough Council,Restart Grant,Wholesale And Retail Trade; Repair Of Motor Vehicles And Motorcycles,19-Apr-21,LRSG_3090,David Atkinson Car Sales,"2,667.00"
Barrow Borough Council,Restart Grant,Wholesale And Retail Trade; Repair Of Motor Vehicles And Motorcycles,19-Apr-21,LRSG_3091,Business Grant Recipient,"2,667.00"
Barrow Borough Council,Restart Grant,Wholesale And Retail Trade; Repair Of Motor Vehicles And Motorcycles,19-Apr-21,LRSG_3092,Special Occasions,"2,667.00"
Barrow Borough Council,Restart Grant,Wholesale And Retail Trade; Repair Of Motor Vehicles And Motorcycles,19-Apr-21,LRSG_3093,Business Grant Recipient,"2,667.00"
Barrow Borough Council,Restart Grant,Wholesale And Retail Trade; Repair Of Motor Vehicles And Motorcycles,19-Apr-21,LRSG_3094,T&J Photographic,"2,667.00"
Barrow Borough Council,Restart Grant,Wholesale And Retail Trade; Repair Of Motor Vehicles And Motorcycles,19-Apr-21,LRSG_3095,Business Grant Recipient,"2,667.00"
Barrow Borough Council,Restart Grant,Wholesale And Retail Trade; Repair Of Motor Vehicles And Motorcycles,19-Apr-21,LRSG_3096,Business Grant Recipient,"2,667.00"
Barrow Borough Council,Restart Grant,Wholesale And Retail Trade; Repair Of Motor Vehicles And Motorcycles,19-Apr-21,LRSG_3097,Barton Townley (Barrow) Ltd,"6,000.00"
Barrow Borough Council,Restart Grant,Wholesale And Retail Trade; Repair Of Motor Vehicles And Motorcycles,19-Apr-21,LRSG_3098,Business Grant Recipient,"2,667.00"
Barrow Borough Council,Restart Grant,Wholesale And Retail Trade; Repair Of Motor Vehicles And Motorcycles,19-Apr-21,LRSG_3099,Business Grant Recipient,"2,667.00"
Barrow Borough Council,Restart Grant,Wholesale And Retail Trade; Repair Of Motor Vehicles And Motorcycles,19-Apr-21,LRSG_3100,Business Grant Recipient,"2,667.00"
Barrow Borough Council,Restart Grant,Wholesale And Retail Trade; Repair Of Motor Vehicles And Motorcycles,19-Apr-21,LRSG_3101,Business Grant Recipient,"2,667.00"
Barrow Borough Council,Restart Grant,Wholesale And Retail Trade; Repair Of Motor Vehicles And Motorcycles,19-Apr-21,LRSG_3102,Posh Flowers Ltd,"2,667.00"
Barrow Borough Council,Restart Grant,Wholesale And Retail Trade; Repair Of Motor Vehicles And Motorcycles,19-Apr-21,LRSG_3103,Searle Audio Ltd,"2,667.00"
Barrow Borough Council,Restart Grant,Wholesale And Retail Trade; Repair Of Motor Vehicles And Motorcycles,19-Apr-21,LRSG_3104,Whitley Hall LTD T/A Cex,"2,667.00"
Barrow Borough Council,Restart Grant,Other Service Activities,19-Apr-21,LRSG_3105,Tony Hand Car Wash Ltd,"2,667.00"
Barrow Borough Council,Restart Grant,Wholesale And Retail Trade; Repair Of Motor Vehicles And Motorcycles,19-Apr-21,LRSG_3106,Business Grant Recipient,"2,667.00"
Barrow Borough Council,Restart Grant,Wholesale And Retail Trade; Repair Of Motor Vehicles And Motorcycles,19-Apr-21,LRSG_3107,Business Grant Recipient,"2,667.00"
Barrow Borough Council,Restart Grant,Wholesale And Retail Trade; Repair Of Motor Vehicles And Motorcycles,19-Apr-21,LRSG_3108,Business Grant Recipient,"2,667.00"
Barrow Borough Council,Restart Grant,Wholesale And Retail Trade; Repair Of Motor Vehicles And Motorcycles,19-Apr-21,LRSG_3109,Business Grant Recipient,"2,667.00"
Barrow Borough Council,Restart Grant,Wholesale And Retail Trade; Repair Of Motor Vehicles And Motorcycles,19-Apr-21,LRSG_3110,Business Grant Recipient,"2,667.00"
Barrow Borough Council,Restart Grant,Wholesale And Retail Trade; Repair Of Motor Vehicles And Motorcycles,19-Apr-21,LRSG_3111,Business Grant Recipient,"2,667.00"
Barrow Borough Council,Restart Grant,Wholesale And Retail Trade; Repair Of Motor Vehicles And Motorcycles,19-Apr-21,LRSG_3112,Anthony Wright Portrait Studio,"2,667.00"
Barrow Borough Council,Restart Grant,Wholesale And Retail Trade; Repair Of Motor Vehicles And Motorcycles,19-Apr-21,LRSG_3113,Ian Ford Books Limited ,"2,667.00"
Barrow Borough Council,Restart Grant,Wholesale And Retail Trade; Repair Of Motor Vehicles And Motorcycles,19-Apr-21,LRSG_3114,CCHG Limited,"2,667.00"
Barrow Borough Council,Restart Grant,Wholesale And Retail Trade; Repair Of Motor Vehicles And Motorcycles,19-Apr-21,LRSG_3115,The Little Flower Company,"2,667.00"
Barrow Borough Council,Restart Grant,Wholesale And Retail Trade; Repair Of Motor Vehicles And Motorcycles,19-Apr-21,LRSG_3116,Andersons (Denton Holme)  Limited,"4,000.00"
Barrow Borough Council,Restart Grant,Wholesale And Retail Trade; Repair Of Motor Vehicles And Motorcycles,19-Apr-21,LRSG_3117,Business Grant Recipient,"2,667.00"
Barrow Borough Council,Restart Grant,Wholesale And Retail Trade; Repair Of Motor Vehicles And Motorcycles,19-Apr-21,LRSG_3118,MBR Motorsports Ltd ,"2,667.00"
Barrow Borough Council,Restart Grant,Wholesale And Retail Trade; Repair Of Motor Vehicles And Motorcycles,19-Apr-21,LRSG_3119,Business Grant Recipient,"2,667.00"
Barrow Borough Council,Restart Grant,Wholesale And Retail Trade; Repair Of Motor Vehicles And Motorcycles,19-Apr-21,LRSG_3120,Lakeland Leisure,"2,667.00"
Barrow Borough Council,Restart Grant,Wholesale And Retail Trade; Repair Of Motor Vehicles And Motorcycles,19-Apr-21,LRSG_3121,Business Grant Recipient,"2,667.00"
Barrow Borough Council,Restart Grant,Wholesale And Retail Trade; Repair Of Motor Vehicles And Motorcycles,19-Apr-21,LRSG_3122,17sport,"2,667.00"
Barrow Borough Council,Restart Grant,Wholesale And Retail Trade; Repair Of Motor Vehicles And Motorcycles,19-Apr-21,LRSG_3123,Business Grant Recipient,"2,667.00"
Barrow Borough Council,Restart Grant,Wholesale And Retail Trade; Repair Of Motor Vehicles And Motorcycles,19-Apr-21,LRSG_3124,Liontrek Ltd,"4,000.00"
Barrow Borough Council,Restart Grant,"Arts, Entertainment And Recreation",19-Apr-21,LRSG_3125,Barrow Underground Music Society,"8,000.00"
Barrow Borough Council,Restart Grant,Accommodation And Food Service Activities,19-Apr-21,LRSG_3126,The Ninetailed Fox Cafe,"8,000.00"
Barrow Borough Council,Restart Grant,"Arts, Entertainment And Recreation",19-Apr-21,LRSG_3127,Business Grant Recipient,"8,000.00"
Barrow Borough Council,Restart Grant,"Arts, Entertainment And Recreation",19-Apr-21,LRSG_3128,Cumbria Pole Art Ltd,"8,000.00"
Barrow Borough Council,Restart Grant,Wholesale And Retail Trade; Repair Of Motor Vehicles And Motorcycles,19-Apr-21,LRSG_3129,Business Grant Recipient,"8,000.00"
Barrow Borough Council,Restart Grant,Accommodation And Food Service Activities,19-Apr-21,LRSG_3130,"Barrow Afc Supporters Club,","8,000.00"
Barrow Borough Council,Restart Grant,Wholesale And Retail Trade; Repair Of Motor Vehicles And Motorcycles,19-Apr-21,LRSG_3131,Elegance Hair Salon,"8,000.00"
Barrow Borough Council,Restart Grant,Wholesale And Retail Trade; Repair Of Motor Vehicles And Motorcycles,19-Apr-21,LRSG_3132,Business Grant Recipient,"8,000.00"
Barrow Borough Council,Restart Grant,Accommodation And Food Service Activities,19-Apr-21,LRSG_3133,Business Grant Recipient,"8,000.00"
Barrow Borough Council,Restart Grant,Accommodation And Food Service Activities,19-Apr-21,LRSG_3134,Amber Taverns Limited,"12,000.00"
Barrow Borough Council,Restart Grant,Accommodation And Food Service Activities,19-Apr-21,LRSG_3135,Diamond (Barrow) Ltd,"8,000.00"
Barrow Borough Council,Restart Grant,Accommodation And Food Service Activities,19-Apr-21,LRSG_3136,"Nautical Club,","8,000.00"
Barrow Borough Council,Restart Grant,Accommodation And Food Service Activities,19-Apr-21,LRSG_3137,Masonic Hall,"8,000.00"
Barrow Borough Council,Restart Grant,Accommodation And Food Service Activities,19-Apr-21,LRSG_3138,Business Grant Recipient,"8,000.00"
Barrow Borough Council,Restart Grant,Wholesale And Retail Trade; Repair Of Motor Vehicles And Motorcycles,19-Apr-21,LRSG_3139,Business Grant Recipient,"8,000.00"
Barrow Borough Council,Restart Grant,Accommodation And Food Service Activities,19-Apr-21,LRSG_3140,Red and Racz Ltd,"12,000.00"
Barrow Borough Council,Restart Grant,Accommodation And Food Service Activities,19-Apr-21,LRSG_3141,Britannia Inn (Church Street) Ltd ,"8,000.00"
Barrow Borough Council,Restart Grant,Wholesale And Retail Trade; Repair Of Motor Vehicles And Motorcycles,19-Apr-21,LRSG_3142,Business Grant Recipient,"8,000.00"
Barrow Borough Council,Restart Grant,"Arts, Entertainment And Recreation",19-Apr-21,LRSG_3143,Dalton Leisure Services Ltd,"18,000.00"
Barrow Borough Council,Restart Grant,"Arts, Entertainment And Recreation",19-Apr-21,LRSG_3144,Majestic Bingo Limited,"18,000.00"
Barrow Borough Council,Restart Grant,Accommodation And Food Service Activities,19-Apr-21,LRSG_3145,Business Grant Recipient,"8,000.00"
Barrow Borough Council,Restart Grant,Wholesale And Retail Trade; Repair Of Motor Vehicles And Motorcycles,19-Apr-21,LRSG_3146,Business Grant Recipient,"8,000.00"
Barrow Borough Council,Restart Grant,Accommodation And Food Service Activities,19-Apr-21,LRSG_3147,Business Grant Recipient,"8,000.00"
Barrow Borough Council,Restart Grant,"Arts, Entertainment And Recreation",19-Apr-21,LRSG_3148,Urban Extreme Ltd,"18,000.00"
Barrow Borough Council,Restart Grant,Wholesale And Retail Trade; Repair Of Motor Vehicles And Motorcycles,19-Apr-21,LRSG_3149,Odette hairdressers,"8,000.00"
Barrow Borough Council,Restart Grant,Wholesale And Retail Trade; Repair Of Motor Vehicles And Motorcycles,19-Apr-21,LRSG_3150,Paul French Salon,"8,000.00"
Barrow Borough Council,Restart Grant,Wholesale And Retail Trade; Repair Of Motor Vehicles And Motorcycles,19-Apr-21,LRSG_3151,Business Grant Recipient,"8,000.00"
Barrow Borough Council,Restart Grant,Accommodation And Food Service Activities,19-Apr-21,LRSG_3152,L & J Restaurants LTD ,"8,000.00"
Barrow Borough Council,Restart Grant,Accommodation And Food Service Activities,19-Apr-21,LRSG_3153,Business Grant Recipient,"12,000.00"
Barrow Borough Council,Restart Grant,Wholesale And Retail Trade; Repair Of Motor Vehicles And Motorcycles,19-Apr-21,LRSG_3154,Business Grant Recipient,"8,000.00"
Barrow Borough Council,Restart Grant,Wholesale And Retail Trade; Repair Of Motor Vehicles And Motorcycles,19-Apr-21,LRSG_3155,The Salon,"8,000.00"
Barrow Borough Council,Restart Grant,Accommodation And Food Service Activities,19-Apr-21,LRSG_3156,Pizza Hut (UK) Ltd,"18,000.00"
Barrow Borough Council,Restart Grant,Accommodation And Food Service Activities,19-Apr-21,LRSG_3157,Roose Pioneers ARLFC,"8,000.00"
Barrow Borough Council,Restart Grant,Accommodation And Food Service Activities,19-Apr-21,LRSG_3158,Mk'S Liverpool Ltd,"8,000.00"
Barrow Borough Council,Restart Grant,Accommodation And Food Service Activities,19-Apr-21,LRSG_3159,"British Legion Club,","8,000.00"
Barrow Borough Council,Restart Grant,Other Service Activities,19-Apr-21,LRSG_3160,SA Salon ,"8,000.00"
Barrow Borough Council,Restart Grant,Accommodation And Food Service Activities,19-Apr-21,LRSG_3161,Business Grant Recipient,"8,000.00"
Barrow Borough Council,Restart Grant,"Arts, Entertainment And Recreation",19-Apr-21,LRSG_3162,Abbots Vale Community Centre,"8,000.00"
Barrow Borough Council,Restart Grant,"Arts, Entertainment And Recreation",19-Apr-21,LRSG_3163,Barrow Golf Club,"12,000.00"
Barrow Borough Council,Restart Grant,Accommodation And Food Service Activities,19-Apr-21,LRSG_3164,Business Grant Recipient,"8,000.00"
Barrow Borough Council,Restart Grant,Accommodation And Food Service Activities,19-Apr-21,LRSG_3165,Nichas Thai kitchen,"8,000.00"
Barrow Borough Council,Restart Grant,Accommodation And Food Service Activities,19-Apr-21,LRSG_3166,Manhattans Barrow Limited,"12,000.00"
Barrow Borough Council,Restart Grant,Accommodation And Food Service Activities,19-Apr-21,LRSG_3167,Hoperiver Limited,"12,000.00"
Barrow Borough Council,Restart Grant,"Arts, Entertainment And Recreation",19-Apr-21,LRSG_3168,The Dunnerholme Golf Club,"8,000.00"
Barrow Borough Council,Restart Grant,Other Service Activities,19-Apr-21,LRSG_3169,Business Grant Recipient,"8,000.00"
Barrow Borough Council,Restart Grant,"Arts, Entertainment And Recreation",19-Apr-21,LRSG_3170,Business Grant Recipient,"8,000.00"
Barrow Borough Council,Restart Grant,Wholesale And Retail Trade; Repair Of Motor Vehicles And Motorcycles,19-Apr-21,LRSG_3171,Coco Cheveux Ltd,"8,000.00"
Barrow Borough Council,Local Restrictions Support Grant (Closed) Addendum: Tier 4,Accommodation And Food Service Activities,19-Apr-21,LRSG_3172,SJA Accommodation Ltd,535.71
Barrow Borough Council,Local Restrictions Support Grant (Closed) Addendum: 5 January onwards,Accommodation And Food Service Activities,19-Apr-21,LRSG_3173,SJA Accommodation Ltd,"4,500.00"
Barrow Borough Council,Restart Grant,Wholesale And Retail Trade; Repair Of Motor Vehicles And Motorcycles,20-Apr-21,LRSG_3174,Business Grant Recipient,"4,000.00"
Barrow Borough Council,Restart Grant,Wholesale And Retail Trade; Repair Of Motor Vehicles And Motorcycles,20-Apr-21,LRSG_3175,Business Grant Recipient,"2,667.00"
Barrow Borough Council,Restart Grant,Wholesale And Retail Trade; Repair Of Motor Vehicles And Motorcycles,20-Apr-21,LRSG_3176,Hays Travel Ltd,"2,667.00"
Barrow Borough Council,Restart Grant,Wholesale And Retail Trade; Repair Of Motor Vehicles And Motorcycles,20-Apr-21,LRSG_3177,Pine Designs,"2,667.00"
Barrow Borough Council,Restart Grant,Wholesale And Retail Trade; Repair Of Motor Vehicles And Motorcycles,20-Apr-21,LRSG_3178,Business Grant Recipient,"2,667.00"
Barrow Borough Council,Restart Grant,Wholesale And Retail Trade; Repair Of Motor Vehicles And Motorcycles,20-Apr-21,LRSG_3179, Home Images,"2,667.00"
Barrow Borough Council,Restart Grant,Wholesale And Retail Trade; Repair Of Motor Vehicles And Motorcycles,20-Apr-21,LRSG_3180, Crafty Hobbies,"2,667.00"
Barrow Borough Council,Restart Grant,Wholesale And Retail Trade; Repair Of Motor Vehicles And Motorcycles,20-Apr-21,LRSG_3181,Courtesy Shoes Ltd,"4,000.00"
Barrow Borough Council,Restart Grant,Wholesale And Retail Trade; Repair Of Motor Vehicles And Motorcycles,20-Apr-21,LRSG_3182,Window Worx Ltd T/A The Wet Room,"2,667.00"
Barrow Borough Council,Restart Grant,Wholesale And Retail Trade; Repair Of Motor Vehicles And Motorcycles,20-Apr-21,LRSG_3183,Business Grant Recipient,"2,667.00"
Barrow Borough Council,Restart Grant,Wholesale And Retail Trade; Repair Of Motor Vehicles And Motorcycles,20-Apr-21,LRSG_3184,Business Grant Recipient,"2,667.00"
Barrow Borough Council,Restart Grant,Wholesale And Retail Trade; Repair Of Motor Vehicles And Motorcycles,20-Apr-21,LRSG_3185,Sally Salon Services Ltd,"4,000.00"
Barrow Borough Council,Restart Grant,Wholesale And Retail Trade; Repair Of Motor Vehicles And Motorcycles,20-Apr-21,LRSG_3186,St Mary's Hospice T/A  HOSPICE OF ST MARY OF FURNESS,"2,667.00"
Barrow Borough Council,Restart Grant,Wholesale And Retail Trade; Repair Of Motor Vehicles And Motorcycles,20-Apr-21,LRSG_3187,St Mary's Hospice,"6,000.00"
Barrow Borough Council,Restart Grant,Wholesale And Retail Trade; Repair Of Motor Vehicles And Motorcycles,20-Apr-21,LRSG_3188,Stollers Furniture World Limited,"6,000.00"
Barrow Borough Council,Restart Grant,Wholesale And Retail Trade; Repair Of Motor Vehicles And Motorcycles,20-Apr-21,LRSG_3189,Fat Bobs CDs Ltd,"2,667.00"
Barrow Borough Council,Restart Grant,Wholesale And Retail Trade; Repair Of Motor Vehicles And Motorcycles,20-Apr-21,LRSG_3190,The Owl Sanctuary,"2,667.00"
Barrow Borough Council,Restart Grant,Wholesale And Retail Trade; Repair Of Motor Vehicles And Motorcycles,20-Apr-21,LRSG_3191,Business Grant Recipient,"2,667.00"
Barrow Borough Council,Restart Grant,Wholesale And Retail Trade; Repair Of Motor Vehicles And Motorcycles,20-Apr-21,LRSG_3192,Mr Mister Ltd,"2,667.00"
Barrow Borough Council,Restart Grant,Wholesale And Retail Trade; Repair Of Motor Vehicles And Motorcycles,20-Apr-21,LRSG_3193, Cheeky Fun Ltd,"2,667.00"
Barrow Borough Council,Restart Grant,Wholesale And Retail Trade; Repair Of Motor Vehicles And Motorcycles,20-Apr-21,LRSG_3194, Raggz,"2,667.00"
Barrow Borough Council,Restart Grant,Wholesale And Retail Trade; Repair Of Motor Vehicles And Motorcycles,20-Apr-21,LRSG_3195,Furness Furniture,"2,667.00"
Barrow Borough Council,Restart Grant,Wholesale And Retail Trade; Repair Of Motor Vehicles And Motorcycles,20-Apr-21,LRSG_3196,Business Grant Recipient,"2,667.00"
Barrow Borough Council,Restart Grant,Wholesale And Retail Trade; Repair Of Motor Vehicles And Motorcycles,20-Apr-21,LRSG_3197,Business Grant Recipient,"2,667.00"
Barrow Borough Council,Restart Grant,Wholesale And Retail Trade; Repair Of Motor Vehicles And Motorcycles,20-Apr-21,LRSG_3198,Business Grant Recipient,"2,667.00"
Barrow Borough Council,Restart Grant,Wholesale And Retail Trade; Repair Of Motor Vehicles And Motorcycles,20-Apr-21,LRSG_3199,Ryman Limited,"4,000.00"
Barrow Borough Council,Restart Grant,Wholesale And Retail Trade; Repair Of Motor Vehicles And Motorcycles,20-Apr-21,LRSG_3200,CSD Property,"2,667.00"
Barrow Borough Council,Restart Grant,Wholesale And Retail Trade; Repair Of Motor Vehicles And Motorcycles,20-Apr-21,LRSG_3201,Business Grant Recipient,"4,000.00"
Barrow Borough Council,Restart Grant,Wholesale And Retail Trade; Repair Of Motor Vehicles And Motorcycles,20-Apr-21,LRSG_3202,Business Grant Recipient,"2,667.00"
Barrow Borough Council,Restart Grant,Wholesale And Retail Trade; Repair Of Motor Vehicles And Motorcycles,20-Apr-21,LRSG_3203,Furness Watch and Jewellery Ltd,"2,667.00"
Barrow Borough Council,Restart Grant,Wholesale And Retail Trade; Repair Of Motor Vehicles And Motorcycles,20-Apr-21,LRSG_3204,Business Grant Recipient,"2,667.00"
Barrow Borough Council,Restart Grant,Wholesale And Retail Trade; Repair Of Motor Vehicles And Motorcycles,20-Apr-21,LRSG_3205,Business Grant Recipient,"2,667.00"
Barrow Borough Council,Restart Grant,Wholesale And Retail Trade; Repair Of Motor Vehicles And Motorcycles,20-Apr-21,LRSG_3206,Pets Paradise ,"2,667.00"
Barrow Borough Council,Restart Grant,Wholesale And Retail Trade; Repair Of Motor Vehicles And Motorcycles,20-Apr-21,LRSG_3207,Business Grant Recipient,"2,667.00"
Barrow Borough Council,Restart Grant,Wholesale And Retail Trade; Repair Of Motor Vehicles And Motorcycles,20-Apr-21,LRSG_3208,Business Grant Recipient,"2,667.00"
Barrow Borough Council,Restart Grant,Wholesale And Retail Trade; Repair Of Motor Vehicles And Motorcycles,20-Apr-21,LRSG_3209,Business Grant Recipient,"2,667.00"
Barrow Borough Council,Local Restrictions Support Grant (Closed) Addendum: 5 January onwards,Accommodation And Food Service Activities,21-Apr-21,LRSG_3210,MAC Barrow Ltd T/A Dhaba Barrow,"2,096.00"
Barrow Borough Council,Local Restrictions Support Grant (Closed) Addendum: 5 January onwards,Wholesale And Retail Trade; Repair Of Motor Vehicles And Motorcycles,21-Apr-21,LRSG_3211,Evalast Home Improvements Ltd,"2,096.00"
Barrow Borough Council,Local Restrictions Support Grant (Closed) Addendum: 5 January onwards,Wholesale And Retail Trade; Repair Of Motor Vehicles And Motorcycles,21-Apr-21,LRSG_3212,Alan Kell Plumbing & Heating Engineers Ltd,"2,096.00"
Barrow Borough Council,Restart Grant,"Arts, Entertainment And Recreation",21-Apr-21,LRSG_3213,Barrow Cricket Club ,"8,000.00"
Barrow Borough Council,Restart Grant,Wholesale And Retail Trade; Repair Of Motor Vehicles And Motorcycles,21-Apr-21,LRSG_3214,Business Grant Recipient,"8,000.00"
Barrow Borough Council,Restart Grant,Other Service Activities,21-Apr-21,LRSG_3215,Headstart ,"8,000.00"
Barrow Borough Council,Restart Grant,Accommodation And Food Service Activities,21-Apr-21,LRSG_3216,Business Grant Recipient,"8,000.00"
Barrow Borough Council,Restart Grant,Accommodation And Food Service Activities,21-Apr-21,LRSG_3217,Business Grant Recipient,"8,000.00"
Barrow Borough Council,Restart Grant,Accommodation And Food Service Activities,21-Apr-21,LRSG_3218,Business Grant Recipient,"8,000.00"
Barrow Borough Council,Restart Grant,Wholesale And Retail Trade; Repair Of Motor Vehicles And Motorcycles,21-Apr-21,LRSG_3219,Business Grant Recipient,"8,000.00"
Barrow Borough Council,Restart Grant,Accommodation And Food Service Activities,21-Apr-21,LRSG_3220,Business Grant Recipient,"18,000.00"
Barrow Borough Council,Restart Grant,Accommodation And Food Service Activities,21-Apr-21,LRSG_3221,Business Grant Recipient,"8,000.00"
Barrow Borough Council,Restart Grant,"Arts, Entertainment And Recreation",21-Apr-21,LRSG_3222,Cumbria CVS,"8,000.00"
Barrow Borough Council,Restart Grant,Accommodation And Food Service Activities,21-Apr-21,LRSG_3223,Business Grant Recipient,"12,000.00"
Barrow Borough Council,Restart Grant,Wholesale And Retail Trade; Repair Of Motor Vehicles And Motorcycles,21-Apr-21,LRSG_3224,Definitions /Light,"8,000.00"
Barrow Borough Council,Restart Grant,Wholesale And Retail Trade; Repair Of Motor Vehicles And Motorcycles,21-Apr-21,LRSG_3225,Business Grant Recipient,"8,000.00"
Barrow Borough Council,Restart Grant,Accommodation And Food Service Activities,21-Apr-21,LRSG_3226,Business Grant Recipient,"8,000.00"
Barrow Borough Council,Restart Grant,Accommodation And Food Service Activities,21-Apr-21,LRSG_3227,SJA Accommodation Ltd,"18,000.00"
Barrow Borough Council,Restart Grant,Accommodation And Food Service Activities,21-Apr-21,LRSG_3228,SJA Accommodation Ltd,"18,000.00"
Barrow Borough Council,Restart Grant,Wholesale And Retail Trade; Repair Of Motor Vehicles And Motorcycles,21-Apr-21,LRSG_3229,Pozo Barber,"8,000.00"
Barrow Borough Council,Restart Grant,Accommodation And Food Service Activities,21-Apr-21,LRSG_3230,GPW Leisure,"8,000.00"
Barrow Borough Council,Restart Grant,Wholesale And Retail Trade; Repair Of Motor Vehicles And Motorcycles,21-Apr-21,LRSG_3231,Business Grant Recipient,"8,000.00"
Barrow Borough Council,Restart Grant,Wholesale And Retail Trade; Repair Of Motor Vehicles And Motorcycles,21-Apr-21,LRSG_3232,Business Grant Recipient,"8,000.00"
Barrow Borough Council,Restart Grant,"Arts, Entertainment And Recreation",21-Apr-21,LRSG_3233,Furness health studio ,"8,000.00"
Barrow Borough Council,Restart Grant,Accommodation And Food Service Activities,21-Apr-21,LRSG_3234,Business Grant Recipient,"8,000.00"
Barrow Borough Council,Restart Grant,Other Service Activities,21-Apr-21,LRSG_3235,SDI FITNESS (DW) LIMITED,"18,000.00"
Barrow Borough Council,Restart Grant,Wholesale And Retail Trade; Repair Of Motor Vehicles And Motorcycles,21-Apr-21,LRSG_3236,Business Grant Recipient,"8,000.00"
Barrow Borough Council,Restart Grant,Wholesale And Retail Trade; Repair Of Motor Vehicles And Motorcycles,21-Apr-21,LRSG_3237,Business Grant Recipient,"8,000.00"
Barrow Borough Council,Restart Grant,Accommodation And Food Service Activities,21-Apr-21,LRSG_3238,David Clark Properties ,"8,000.00"
Barrow Borough Council,Restart Grant,"Arts, Entertainment And Recreation",21-Apr-21,LRSG_3239,Furness Golf Club,"12,000.00"
Barrow Borough Council,Restart Grant,Accommodation And Food Service Activities,21-Apr-21,LRSG_3240,Valley View House Limited,"12,000.00"
Barrow Borough Council,Restart Grant,Accommodation And Food Service Activities,21-Apr-21,LRSG_3241,Business Grant Recipient,"8,000.00"
Barrow Borough Council,Restart Grant,Other Service Activities,21-Apr-21,LRSG_3242,Love Yoga,"8,000.00"
Barrow Borough Council,Restart Grant,Accommodation And Food Service Activities,21-Apr-21,LRSG_3243,Business Grant Recipient,"8,000.00"
Barrow Borough Council,Restart Grant,"Arts, Entertainment And Recreation",21-Apr-21,LRSG_3244,Cumbria Zoo Co Ltd,"18,000.00"
Barrow Borough Council,Restart Grant,Accommodation And Food Service Activities,21-Apr-21,LRSG_3245,Trident Hotels (South Lakes) 1 Limited T/A Holiday Inn Express Barrow,"18,000.00"
Barrow Borough Council,Restart Grant,Wholesale And Retail Trade; Repair Of Motor Vehicles And Motorcycles,21-Apr-21,LRSG_3246,Unicut ,"8,000.00"
Barrow Borough Council,Restart Grant,"Arts, Entertainment And Recreation",21-Apr-21,LRSG_3247,Askam Town Silver Band,"8,000.00"
Barrow Borough Council,Restart Grant,"Arts, Entertainment And Recreation",21-Apr-21,LRSG_3248,Barrow ABC Brook St Gym,"8,000.00"
Barrow Borough Council,Restart Grant,"Arts, Entertainment And Recreation",21-Apr-21,LRSG_3249,Dalton Girl Guide Association,"8,000.00"
Barrow Borough Council,Restart Grant,Wholesale And Retail Trade; Repair Of Motor Vehicles And Motorcycles,21-Apr-21,LRSG_3250,Angel nails ,"8,000.00"
Barrow Borough Council,Restart Grant,Wholesale And Retail Trade; Repair Of Motor Vehicles And Motorcycles,21-Apr-21,LRSG_3251,Business Grant Recipient,"8,000.00"
Barrow Borough Council,Restart Grant,Accommodation And Food Service Activities,21-Apr-21,LRSG_3252,Marilyns (Barrow) Limited,"12,000.00"
Barrow Borough Council,Restart Grant,"Arts, Entertainment And Recreation",21-Apr-21,LRSG_3253,Crossfit Barrow,"12,000.00"
Barrow Borough Council,Restart Grant,Wholesale And Retail Trade; Repair Of Motor Vehicles And Motorcycles,21-Apr-21,LRSG_3254,Business Grant Recipient,"2,667.00"
Barrow Borough Council,Restart Grant,Wholesale And Retail Trade; Repair Of Motor Vehicles And Motorcycles,21-Apr-21,LRSG_3255,South Lakes Cars,"2,667.00"
Barrow Borough Council,Restart Grant,Wholesale And Retail Trade; Repair Of Motor Vehicles And Motorcycles,21-Apr-21,LRSG_3256,Business Grant Recipient,"2,667.00"
Barrow Borough Council,Restart Grant,Wholesale And Retail Trade; Repair Of Motor Vehicles And Motorcycles,21-Apr-21,LRSG_3257,Pampered Pooch,"2,667.00"
Barrow Borough Council,Restart Grant,Wholesale And Retail Trade; Repair Of Motor Vehicles And Motorcycles,21-Apr-21,LRSG_3258,Phone Gadgets 4U Ltd,"2,667.00"
Barrow Borough Council,Restart Grant,Wholesale And Retail Trade; Repair Of Motor Vehicles And Motorcycles,21-Apr-21,LRSG_3259,All that glitters,"2,667.00"
Barrow Borough Council,Restart Grant,Wholesale And Retail Trade; Repair Of Motor Vehicles And Motorcycles,21-Apr-21,LRSG_3260,South Lakes Interiors Ltd,"2,667.00"
Barrow Borough Council,Restart Grant,Wholesale And Retail Trade; Repair Of Motor Vehicles And Motorcycles,21-Apr-21,LRSG_3261,Business Grant Recipient,"2,667.00"
Barrow Borough Council,Restart Grant,Wholesale And Retail Trade; Repair Of Motor Vehicles And Motorcycles,21-Apr-21,LRSG_3262,Expressions of Lancaster Ltd,"2,667.00"
Barrow Borough Council,Restart Grant,Wholesale And Retail Trade; Repair Of Motor Vehicles And Motorcycles,21-Apr-21,LRSG_3263, LA CHIC,"2,667.00"
Barrow Borough Council,Restart Grant,"Arts, Entertainment And Recreation",21-Apr-21,LRSG_3264,Furness Homeless Support group,"2,667.00"
Barrow Borough Council,Restart Grant,Accommodation And Food Service Activities,21-Apr-21,LRSG_3265,Ambrose Hotel,"12,000.00"
Barrow Borough Council,Restart Grant,Accommodation And Food Service Activities,21-Apr-21,LRSG_3266,The Lodge (Accommodation) Ltd,"8,000.00"
Barrow Borough Council,Restart Grant,Accommodation And Food Service Activities,21-Apr-21,LRSG_3267,Business Grant Recipient,"8,000.00"
Barrow Borough Council,Restart Grant,Accommodation And Food Service Activities,21-Apr-21,LRSG_3268,Business Grant Recipient,"12,000.00"
Barrow Borough Council,Restart Grant,Accommodation And Food Service Activities,21-Apr-21,LRSG_3269,The Barrow Rugby Football Club Ltd,"8,000.00"
Barrow Borough Council,Restart Grant,Accommodation And Food Service Activities,21-Apr-21,LRSG_3270,Business Grant Recipient,"12,000.00"
Barrow Borough Council,Restart Grant,Wholesale And Retail Trade; Repair Of Motor Vehicles And Motorcycles,21-Apr-21,LRSG_3271,All Style Tattoos Ltd,"8,000.00"
Barrow Borough Council,Restart Grant,Accommodation And Food Service Activities,21-Apr-21,LRSG_3272,Bar 20 Dalton Limited,"8,000.00"
Barrow Borough Council,Restart Grant,"Arts, Entertainment And Recreation",21-Apr-21,LRSG_3273,SW Lakes District Scouts,"8,000.00"
Barrow Borough Council,Restart Grant,"Arts, Entertainment And Recreation",21-Apr-21,LRSG_3274,Furness Homeless Support group,"8,000.00"
Barrow Borough Council,Restart Grant,"Arts, Entertainment And Recreation",21-Apr-21,LRSG_3275,Business Grant Recipient,"8,000.00"
Barrow Borough Council,Restart Grant,Wholesale And Retail Trade; Repair Of Motor Vehicles And Motorcycles,21-Apr-21,LRSG_3276,Gentry,"8,000.00"
Barrow Borough Council,Closed Business Lockdown Payment,Accommodation And Food Service Activities,21-Apr-21,LRSG_3277,SJA Accommodation Ltd,"9,000.00"
Barrow Borough Council,Restart Grant,Other Service Activities,23-Apr-21,LRSG_3278,Business Grant Recipient,"8,000.00"
Barrow Borough Council,Restart Grant,Accommodation And Food Service Activities,23-Apr-21,LRSG_3279,RHBB LTD,"12,000.00"
Barrow Borough Council,Restart Grant,Accommodation And Food Service Activities,23-Apr-21,LRSG_3280,Barrow island ARLFC,"8,000.00"
Barrow Borough Council,Restart Grant,Other Service Activities,23-Apr-21,LRSG_3281, House of Hair,"8,000.00"
Barrow Borough Council,Restart Grant,Accommodation And Food Service Activities,23-Apr-21,LRSG_3282,Central Preston st working mens club,"8,000.00"
Barrow Borough Council,Restart Grant,Wholesale And Retail Trade; Repair Of Motor Vehicles And Motorcycles,23-Apr-21,LRSG_3283,Clean Wright ,"2,667.00"
Barrow Borough Council,Restart Grant,Wholesale And Retail Trade; Repair Of Motor Vehicles And Motorcycles,23-Apr-21,LRSG_3284,Pye Motors Ltd,"4,000.00"
Barrow Borough Council,Restart Grant,Wholesale And Retail Trade; Repair Of Motor Vehicles And Motorcycles,23-Apr-21,LRSG_3285,TNT Comms Ltd,"4,000.00"
Barrow Borough Council,Restart Grant,"Professional, Scientific And Technical Activities",23-Apr-21,LRSG_3286,Business Grant Recipient,"2,667.00"
Barrow Borough Council,Restart Grant,Wholesale And Retail Trade; Repair Of Motor Vehicles And Motorcycles,27-Apr-21,LRSG_3287,Furness Heating Components Ltd,"4,000.00"
Barrow Borough Council,Restart Grant,Wholesale And Retail Trade; Repair Of Motor Vehicles And Motorcycles,27-Apr-21,LRSG_3288,Mobility Solutions Barrow Ltd,"2,667.00"
Barrow Borough Council,Restart Grant,Wholesale And Retail Trade; Repair Of Motor Vehicles And Motorcycles,27-Apr-21,LRSG_3289,Mobility Solutions Barrow Ltd,"2,667.00"
Barrow Borough Council,Restart Grant,Wholesale And Retail Trade; Repair Of Motor Vehicles And Motorcycles,27-Apr-21,LRSG_3290,Business Grant Recipient,"2,667.00"
Barrow Borough Council,Restart Grant,Wholesale And Retail Trade; Repair Of Motor Vehicles And Motorcycles,27-Apr-21,LRSG_3291,Cumbria Embroidery & Print ,"2,667.00"
Barrow Borough Council,Restart Grant,Wholesale And Retail Trade; Repair Of Motor Vehicles And Motorcycles,27-Apr-21,LRSG_3292,Cumbria Sewing & Craft Centre Limited,"4,000.00"
Barrow Borough Council,Restart Grant,Wholesale And Retail Trade; Repair Of Motor Vehicles And Motorcycles,27-Apr-21,LRSG_3293,Business Grant Recipient,"2,667.00"
Barrow Borough Council,Restart Grant,Wholesale And Retail Trade; Repair Of Motor Vehicles And Motorcycles,27-Apr-21,LRSG_3294,Got It Covered Ltd,"2,667.00"
Barrow Borough Council,Restart Grant,Wholesale And Retail Trade; Repair Of Motor Vehicles And Motorcycles,27-Apr-21,LRSG_3295,Global Education Trust,"4,000.00"
Barrow Borough Council,Restart Grant,Wholesale And Retail Trade; Repair Of Motor Vehicles And Motorcycles,27-Apr-21,LRSG_3296,Business Grant Recipient,"2,667.00"
Barrow Borough Council,Restart Grant,Wholesale And Retail Trade; Repair Of Motor Vehicles And Motorcycles,27-Apr-21,LRSG_3297,Premier Tiles Barrow-in-Furness Ltd,"4,000.00"
Barrow Borough Council,Restart Grant,Wholesale And Retail Trade; Repair Of Motor Vehicles And Motorcycles,27-Apr-21,LRSG_3298,Susan Dunn Limited,"2,667.00"
Barrow Borough Council,Restart Grant,Wholesale And Retail Trade; Repair Of Motor Vehicles And Motorcycles,27-Apr-21,LRSG_3299,Business Grant Recipient,"2,667.00"
Barrow Borough Council,Restart Grant,Accommodation And Food Service Activities,27-Apr-21,LRSG_3300,Business Grant Recipient,"2,667.00"
Barrow Borough Council,Restart Grant,Wholesale And Retail Trade; Repair Of Motor Vehicles And Motorcycles,27-Apr-21,LRSG_3301,Glo Tanning Salon,"8,000.00"
Barrow Borough Council,Restart Grant,"Arts, Entertainment And Recreation",27-Apr-21,LRSG_3302,Dazzle for Children & Young People,"8,000.00"
Barrow Borough Council,Restart Grant,Wholesale And Retail Trade; Repair Of Motor Vehicles And Motorcycles,27-Apr-21,LRSG_3303,A SPOT Ltd,"8,000.00"
Barrow Borough Council,Restart Grant,Accommodation And Food Service Activities,27-Apr-21,LRSG_3304,Abbey House Hotel (Cumbria) Ltd,"18,000.00"
Barrow Borough Council,Restart Grant,Accommodation And Food Service Activities,27-Apr-21,LRSG_3305,Aquaflo proerty,"8,000.00"
Barrow Borough Council,Restart Grant,Accommodation And Food Service Activities,27-Apr-21,LRSG_3306,Aquaflo proerty,"8,000.00"
Barrow Borough Council,Restart Grant,"Arts, Entertainment And Recreation",27-Apr-21,LRSG_3307,Free Spirit Academy of Dance and Acrobatics Ltd,"8,000.00"
Barrow Borough Council,Restart Grant,Other Service Activities,27-Apr-21,LRSG_3308,Business Grant Recipient,"8,000.00"
Barrow Borough Council,Restart Grant,Accommodation And Food Service Activities,27-Apr-21,LRSG_3309,Trustees of Biggar bank Caravan Association T/A Salt Marsh Caravan Park,"8,000.00"
Barrow Borough Council,Restart Grant,"Arts, Entertainment And Recreation",27-Apr-21,LRSG_3310,West Shore Bowling Club,"8,000.00"
Barrow Borough Council,Restart Grant,Accommodation And Food Service Activities,27-Apr-21,LRSG_3311,The Sun Inn,"18,000.00"
Barrow Borough Council,Restart Grant,Accommodation And Food Service Activities,27-Apr-21,LRSG_3312,BLUEBIRD HOTELS LIMITED,"12,000.00"
Barrow Borough Council,Restart Grant,Wholesale And Retail Trade; Repair Of Motor Vehicles And Motorcycles,27-Apr-21,LRSG_3313,Business Grant Recipient,"8,000.00"
Barrow Borough Council,Restart Grant,Accommodation And Food Service Activities,27-Apr-21,LRSG_3314,Izgara Barrow Limited,"8,000.00"
Barrow Borough Council,Restart Grant,"Arts, Entertainment And Recreation",27-Apr-21,LRSG_3315,North Scale Residents Association,"8,000.00"
Barrow Borough Council,Restart Grant,Wholesale And Retail Trade; Repair Of Motor Vehicles And Motorcycles,27-Apr-21,LRSG_3316,Business Grant Recipient,"8,000.00"
Barrow Borough Council,Local Restrictions Support Grant (Closed)�Addendum�,Accommodation And Food Service Activities,27-Apr-21,LRSG_3317,Business Grant Recipient,"1,334.00"
Barrow Borough Council,Local Restrictions Support Grant (Open)�,Accommodation And Food Service Activities,27-Apr-21,LRSG_3318,Business Grant Recipient,633.79
Barrow Borough Council,Local Restrictions Support Grant (Closed) Addendum: Tier 4,"Arts, Entertainment And Recreation",27-Apr-21,LRSG_3319,Business Grant Recipient,238.21
Barrow Borough Council,Local Restrictions Support Grant (Closed) Addendum: 5 January onwards,"Arts, Entertainment And Recreation",27-Apr-21,LRSG_3320,Business Grant Recipient,"2,001.00"
Barrow Borough Council,Local Restrictions Support Grant (Closed) Addendum: Tier 4,"Arts, Entertainment And Recreation",27-Apr-21,LRSG_3321,Barrow island ARLFC,238.21
Barrow Borough Council,Local Restrictions Support Grant (Closed) Addendum: 5 January onwards,"Arts, Entertainment And Recreation",27-Apr-21,LRSG_3322,Barrow island ARLFC,"2,001.00"
Barrow Borough Council,Local Restrictions Support Grant (Open)�,Accommodation And Food Service Activities,28-Apr-21,LRSG_3323,Business Grant Recipient,967.36
Barrow Borough Council,Local Restrictions Support Grant (Closed) Addendum: Tier 4,Accommodation And Food Service Activities,28-Apr-21,LRSG_3324,Business Grant Recipient,238.21
Barrow Borough Council,Local Restrictions Support Grant (Closed) Addendum: 5 January onwards,Accommodation And Food Service Activities,28-Apr-21,LRSG_3325,Business Grant Recipient,"2,001.00"
Barrow Borough Council,Local Restrictions Support Grant (Closed) Addendum: Tier 4,Accommodation And Food Service Activities,28-Apr-21,LRSG_3326,Business Grant Recipient,238.21
Barrow Borough Council,Local Restrictions Support Grant (Closed) Addendum: 5 January onwards,Accommodation And Food Service Activities,28-Apr-21,LRSG_3327,Business Grant Recipient,"2,001.00"
Barrow Borough Council,Local Restrictions Support Grant (Closed) Addendum: Tier 4,Wholesale And Retail Trade; Repair Of Motor Vehicles And Motorcycles,28-Apr-21,LRSG_3328,Cancer Research UK,238.21
Barrow Borough Council,Local Restrictions Support Grant (Closed) Addendum: 5 January onwards,Wholesale And Retail Trade; Repair Of Motor Vehicles And Motorcycles,28-Apr-21,LRSG_3329,Cancer Research UK,"2,001.00"
Barrow Borough Council,Closed Business Lockdown Payment,"Arts, Entertainment And Recreation",28-Apr-21,LRSG_3330,Business Grant Recipient,"4,000.00"
Barrow Borough Council,Closed Business Lockdown Payment,"Arts, Entertainment And Recreation",28-Apr-21,LRSG_3331,Barrow island ARLFC,"4,000.00"
Barrow Borough Council,Closed Business Lockdown Payment,Accommodation And Food Service Activities,28-Apr-21,LRSG_3332,Business Grant Recipient,"4,000.00"
Barrow Borough Council,Closed Business Lockdown Payment,Wholesale And Retail Trade; Repair Of Motor Vehicles And Motorcycles,28-Apr-21,LRSG_3333,Cancer Research UK,"4,000.00"
Barrow Borough Council,Closed Business Lockdown Payment,Accommodation And Food Service Activities,28-Apr-21,LRSG_3334,Business Grant Recipient,"4,000.00"
Barrow Borough Council,Local Restrictions Support Grant (Closed) Addendum: 5 January onwards,Other Service Activities,28-Apr-21,LRSG_3335,Review The Haircutters Ltd,"2,096.00"
Barrow Borough Council,Local Restrictions Support Grant (Closed) Addendum: 5 January onwards,Wholesale And Retail Trade; Repair Of Motor Vehicles And Motorcycles,28-Apr-21,LRSG_3336,Business Grant Recipient,"2,096.00"
Barrow Borough Council,Local Restrictions Support Grant (Closed) Addendum: 5 January onwards,"Arts, Entertainment And Recreation",28-Apr-21,LRSG_3337,Business Grant Recipient,"2,096.00"
Barrow Borough Council,Local Restrictions Support Grant (Closed) Addendum: 5 January onwards,Accommodation And Food Service Activities,28-Apr-21,LRSG_3338,SJA Accommodation Ltd,"4,714.00"
Barrow Borough Council,Restart Grant,Wholesale And Retail Trade; Repair Of Motor Vehicles And Motorcycles,28-Apr-21,LRSG_3339,Abbey Rd car sale ltd,"2,667.00"
Barrow Borough Council,Restart Grant,Wholesale And Retail Trade; Repair Of Motor Vehicles And Motorcycles,28-Apr-21,LRSG_3340,So Silver,"2,667.00"
Barrow Borough Council,Restart Grant,Wholesale And Retail Trade; Repair Of Motor Vehicles And Motorcycles,28-Apr-21,LRSG_3341,Business Grant Recipient,"2,667.00"
Barrow Borough Council,Restart Grant,Wholesale And Retail Trade; Repair Of Motor Vehicles And Motorcycles,28-Apr-21,LRSG_3342,Business Grant Recipient,"2,667.00"
Barrow Borough Council,Restart Grant,Wholesale And Retail Trade; Repair Of Motor Vehicles And Motorcycles,28-Apr-21,LRSG_3343,SB Wallpaper,"2,667.00"
Barrow Borough Council,Restart Grant,Wholesale And Retail Trade; Repair Of Motor Vehicles And Motorcycles,28-Apr-21,LRSG_3344,Weird or Wonderful Ltd,"2,667.00"
Barrow Borough Council,Restart Grant,Wholesale And Retail Trade; Repair Of Motor Vehicles And Motorcycles,28-Apr-21,LRSG_3345, Furness Heat Treatment,"2,667.00"
Barrow Borough Council,Restart Grant,"Arts, Entertainment And Recreation",28-Apr-21,LRSG_3346,Dalton United Football Club,"8,000.00"
Barrow Borough Council,Restart Grant,"Arts, Entertainment And Recreation",28-Apr-21,LRSG_3347,Signal Films,"8,000.00"
Barrow Borough Council,Restart Grant,"Arts, Entertainment And Recreation",28-Apr-21,LRSG_3348,Holker Old Boys Football Club,"8,000.00"
Barrow Borough Council,Restart Grant,Accommodation And Food Service Activities,28-Apr-21,LRSG_3349,Hawthorn Leisure Honey Ltd,"12,000.00"
Barrow Borough Council,Restart Grant,Other Service Activities,28-Apr-21,LRSG_3350,Boss Hair Studio,"8,000.00"
Barrow Borough Council,Restart Grant,Accommodation And Food Service Activities,28-Apr-21,LRSG_3351,Business Grant Recipient,"8,000.00"
Barrow Borough Council,Restart Grant,Other Service Activities,28-Apr-21,LRSG_3352, Beau Laser Aesthetics,"8,000.00"
Barrow Borough Council,Restart Grant,Wholesale And Retail Trade; Repair Of Motor Vehicles And Motorcycles,28-Apr-21,LRSG_3353, The Mane Man,"8,000.00"
Barrow Borough Council,Restart Grant,Wholesale And Retail Trade; Repair Of Motor Vehicles And Motorcycles,28-Apr-21,LRSG_3354,Business Grant Recipient,"8,000.00"
Barrow Borough Council,Restart Grant,Accommodation And Food Service Activities,28-Apr-21,LRSG_3355,Kill One Club,"8,000.00"
Barrow Borough Council,Restart Grant,Accommodation And Food Service Activities,28-Apr-21,LRSG_3356,The Harbour Inn Barrow Ltd,"12,000.00"
Barrow Borough Council,Restart Grant,Other Service Activities,28-Apr-21,LRSG_3357,Business Grant Recipient,"8,000.00"
Barrow Borough Council,Restart Grant,Accommodation And Food Service Activities,28-Apr-21,LRSG_3358,Business Grant Recipient,"8,000.00"
Barrow Borough Council,Restart Grant,Other Service Activities,28-Apr-21,LRSG_3359,Business Grant Recipient,"8,000.00"
Barrow Borough Council,Local Restrictions Support Grant (Closed) Addendum: Tier 4,Accommodation And Food Service Activities,29-Apr-21,LRSG_3360,Healeys Bar Ltd,238.21
Barrow Borough Council,Local Restrictions Support Grant (Closed) Addendum: 5 January onwards,Accommodation And Food Service Activities,29-Apr-21,LRSG_3361,Healeys Bar Ltd,"2,001.00"
Barrow Borough Council,Local Restrictions Support Grant (Closed) Addendum: Tier 4,Accommodation And Food Service Activities,29-Apr-21,LRSG_3362,A.S.H. BAR LIMITED,357.14
Barrow Borough Council,Local Restrictions Support Grant (Closed) Addendum: 5 January onwards,Accommodation And Food Service Activities,29-Apr-21,LRSG_3363,A.S.H. BAR LIMITED,"3,000.00"
Barrow Borough Council,Closed Business Lockdown Payment,Accommodation And Food Service Activities,29-Apr-21,LRSG_3364,Healeys Bar Ltd,"4,000.00"
Barrow Borough Council,Closed Business Lockdown Payment,Accommodation And Food Service Activities,29-Apr-21,LRSG_3365,A.S.H. BAR LIMITED,"6,000.00"
Barrow Borough Council,Local Restrictions Support Grant (Closed)�Addendum�,Wholesale And Retail Trade; Repair Of Motor Vehicles And Motorcycles,29-Apr-21,LRSG_3366,TJX UK Ltd,"3,000.00"
Barrow Borough Council,Restart Grant,Wholesale And Retail Trade; Repair Of Motor Vehicles And Motorcycles,29-Apr-21,LRSG_3367,Business Grant Recipient,"5,333.00"
Barrow Borough Council,Local Restrictions Support Grant (Closed) Addendum: Tier 4,Wholesale And Retail Trade; Repair Of Motor Vehicles And Motorcycles,30-Apr-21,LRSG_3368,TJX UK Ltd,535.71
Barrow Borough Council,Local Restrictions Support Grant (Closed) Addendum: 5 January onwards,Wholesale And Retail Trade; Repair Of Motor Vehicles And Motorcycles,30-Apr-21,LRSG_3369,TJX UK Ltd,"4,500.00"
Barrow Borough Council,Local Restrictions Support Grant (Closed) Addendum: Tier 4,Wholesale And Retail Trade; Repair Of Motor Vehicles And Motorcycles,30-Apr-21,LRSG_3370,Barrow Rugby League Auxiliary Association,238.21
Barrow Borough Council,Local Restrictions Support Grant (Closed) Addendum: 5 January onwards,Wholesale And Retail Trade; Repair Of Motor Vehicles And Motorcycles,30-Apr-21,LRSG_3371,Barrow Rugby League Auxiliary Association,"2,001.00"
Barrow Borough Council,Closed Business Lockdown Payment,Wholesale And Retail Trade; Repair Of Motor Vehicles And Motorcycles,30-Apr-21,LRSG_3372,TJX UK Ltd,"9,000.00"
Barrow Borough Council,Closed Business Lockdown Payment,Wholesale And Retail Trade; Repair Of Motor Vehicles And Motorcycles,30-Apr-21,LRSG_3373,Barrow Rugby League Auxiliary Association,"4,000.00"
